Cogmind - Beta 16 @@@ ROGUE MODE // 2025.10.28 @ 21:54:16 Player: f3-rnm Result: Destroyed by Enhanced Grunt with Neutron Cannon Performance ------------- Evolutions (4) 2000 Regions Visited (8) 1600 Robots Destroyed (80) 400 Value Destroyed (3071) 3071 Prototype IDs (18) 360 Alien Tech Used (0) 0 Bonus (1512) 1512 TOTAL SCORE: 8943 Bonus ------- High Alert Combat Kills 346 Follower Combat Kills 531 Registered with UFD 300 Met Optimus in HQ 500 Met Data Miner 300 Friendly Fire -465 Cogmind --------- Core Integrity 0/850 Matter 270/300 Energy 71/100 System Corruption 9% Temperature Cool (64) Movement Core (500) Ox9 Location -6/Data Miner Parts ------- > --- POWER (1) -------- (None) > --- PROPULSION (2) --- (None) > --- UTILITY (7) ------ Large Storage Unit Advanced Signal Interpreter > --- WEAPON (5) ------- Neutron Cannon > --- INVENTORY (15) --- Matter Compressor (250) Spectral Analyzer IFF Parser Component Analysis Suite A0-MCA's Component Scanner High-powered Tractor Beam CPS Tube (1) DRS Beacon (Ready) Large Botcube Peak State ------------ > --- POWER ------------ Enhanced Nuclear Core > --- PROPULSION ------- Overtuned Huge Scrapsphere > --- UTILITY ---------- Scrap Suit Advanced Heat Sink Large Storage Unit Advanced Sensor Array Advanced Signal Interpreter Core Analyzer > --- WEAPON ----------- Gauss Rifle Gauss Rifle Heavy Machine Gun Heavy Machine Gun Powered Hammer > --- INVENTORY -------- Light Deuterium Engine Micro Nuclear Core Overtuned Scrapsphere Scrap Suit Advanced Heat Sink Advanced Heat Sink Matter Compressor Spectral Analyzer A0-MCA's Component Scanner High-powered Tractor Beam Coil Gun Mini Grenade Launcher CPS Tube DRS Beacon [Rating: 74] Favorites ----------- Power Ion Engine Engine Ion Engine Power Core Enhanced Nuclear Core Propulsion Wheel Treads Light Treads Leg Enhanced Flexi-carbon Leg Wheel Wheel Utility Large Storage Unit Device Scrap Suit Storage Large Storage Unit Processor Improved Targeting Computer Protection Medium Reactive Plating Weapon Coil Gun Energy Gun Arc Projector Energy Cannon Heavy Particle Cannon Ballistic Gun Coil Gun Ballistic Cannon Battle Cannon Launcher Grenade Launcher Special Weapon CPS Tube Impact Weapon Powered Hammer Slashing Weapon Makeshift Axe Build | -11 -10 -10 -9 -9 -6 -6 -6 -6 ------- Run | Yrd Mat Sub Rec Scr Fac Low Low Dat Slots Evolved 8 | . . . . . 8 . . . Power . | . . . . . . . . . Propulsion . | . . . . . . . . . Utility 5 | . . . . . 5 . . . Weapon 3 | . . . . . 3 . . . Parts Attached 65 | 6 2 6 1 4 31 3 2 10 Power 7 | 1 . . 1 . 2 1 . 2 Engine 4 | 1 . . 1 . 1 . . 1 Core 3 | . . . . . 1 1 . 1 Reactor . | . . . . . . . . . Propulsion 7 | 2 . 1 . 1 1 . . 2 Treads 2 | 2 . . . . . . . . Leg 2 | . . . . . . . . 2 Wheel 3 | . . 1 . 1 1 . . . Hover . | . . . . . . . . . Flight . | . . . . . . . . . Utility 22 | 1 2 . . 1 13 . 1 4 Device 10 | . . . . . 8 . 1 1 Storage 4 | 1 1 . . 1 . . . 1 Processor 6 | . 1 . . . 5 . . . Hackware . | . . . . . . . . . Protection 2 | . . . . . . . . 2 Artifact . | . . . . . . . . . Weapon 29 | 2 . 5 . 2 15 2 1 2 Energy Gun 5 | . . 1 . 1 1 1 1 . Energy Cannon 4 | . . 1 . 1 1 . . 1 Ballistic Gun 12 | 2 . . . . 10 . . . Ballistic Cannon 2 | . . 1 . . 1 . . . Launcher 3 | . . 2 . . . . . 1 Special Weapon 1 | . . . . . 1 . . . Impact Weapon 1 | . . . . . 1 . . . Slashing Weapon 1 | . . . . . . 1 . . Piercing Weapon . | . . . . . . . . . Special Melee Weapon . | . . . . . . . . . Unidentified Prototypes 6 | . . . . . 3 . . 3 Corrupted Parts 1 | . . . . . 1 . . . System Corruption 6 | . . . . . 6 . . . Parts Lost 28 | . . 2 1 . 5 3 . 17 Power 5 | . . . 1 . . 1 . 3 Propulsion 3 | . . 1 . . . . . 2 Utility 7 | . . . . . 1 . . 6 Weapon 13 | . . 1 . . 4 2 . 6 Highest Loss Streak 8 | . . 1 1 . 3 2 . 8 To Critical Strikes . | . . . . . . . . . Average Backups 18 | 1 7 14 15 22 13 12 12 10 Power . | . 1 1 . . 1 1 1 . Propulsion 4 | . 2 4 5 7 1 . . . Utility 6 | . 1 3 4 6 5 9 9 8 Weapon 5 | . 1 4 5 7 3 1 1 1 Tool/Special . | . . . . . . . . . Unused Backups 43 | . . . . 16 8 12 1 6 Power 2 | . . . . 1 . 1 . . Propulsion 11 | . . . . 4 4 3 . . Utility 19 | . . . . 7 1 4 1 6 Weapon 11 | . . . . 4 3 4 . . Tool/Special . | . . . . . . . . . Average Slot Usage (%) 72 | . 92 99 87 57 80 85 86 65 Engine 7 | . 14 14 5 9 . . . . Core 1 | . . . . . 5 5 6 2 Treads 5 | . 28 23 14 1 . . . . Wheel 16 | . . 4 14 26 6 6 6 4 Device 5 | . . . . . 19 20 20 13 Storage 11 | . 16 14 14 13 6 6 6 6 Processor 6 | . 4 14 14 1 8 13 13 13 Energy Gun 2 | . . 3 . 2 1 . 7 6 Energy Cannon 2 | . . 4 . 2 . . . 2 Ballistic Gun 8 | . 28 11 . . 26 21 13 4 Ballistic Cannon 1 | . . 7 . . . . . . Peak Build Rating 74 | 6 9 13 12 22 74 73 74 74 Average Rating 28 | 4 7 11 11 14 65 71 73 58 On Entrance 30 | . 6 9 12 9 22 73 73 74 Avg Prop Armor Cover (%) 15 | . . 11 13 19 . . . . Naked Turns . | . . . . . . . . . Heaviest Build 245 | 12 32 34 34 210 245 55 53 61 Greatest Support 56 | 40 40 40 10 22 22 20 20 56 Greatest Overweight (x) 12 | . . 3 3 9 12 2 2 3 Average Overweight (x) 4 | . . 1 2 7 2 2 2 1 Largest Inventory Capacity 35 | 8 15 15 15 35 35 15 15 15 Average Capacity 24 | 6 11 15 15 33 16 15 15 15 Most Carried 31 | 3 11 15 15 31 29 15 15 15 Average Carried 20 | 1 7 14 14 25 15 14 15 13 Final Capacity 35 | 8 15 15 15 35 15 15 15 15 Final Carried 30 | 3 11 15 15 30 15 15 15 10 Scrap Suit Usage (%) 11 | . . . . . 3 100 81 . Parts Cannibalized 3 | . . . . . 1 1 1 . Class Distribution -------------------- 48% | Hauler-Mutant 29% | Mutant 10% | Scrapper 6% | Skirmisher 3% | Scavenger-Skirmisher Dominant Class ---------------- Mutant | -10/Materials Mutant | -10/Subcaves Mutant | -9/Recycling Hauler-Mutant | -9/Scraptown Scrapper | -6/Factory Skirmisher | -6/Lower Caves Skirmisher | -6/Lower Caves Mutant | -6/Data Miner Resources | -11 -10 -10 -9 -9 -6 -6 -6 -6 ----------- Run | Yrd Mat Sub Rec Scr Fac Low Low Dat Matter Collected 3738 | 192 . 407 16 135 1753 1116 27 92 Remotely . | . . . . . . . . . Salvage Created 4192 | . . 455 16 . 2470 955 . 296 Parts 182 | . . 35 . . 102 30 . 15 Haulers Intercepted 1 | . . . . . 1 . . . Recyclers Shooed 2 | . . . . . 2 . . . Parts Field Recycled . | . . . . . . . . . Retrieved Matter . | . . . . . . . . . Parts Self-Destructed 35 | . . 10 . . . 25 . . Prevented . | . . . . . . . . . Parts Restored . | . . . . . . . . . Kills | -11 -10 -10 -9 -9 -6 -6 -6 -6 ------- Run | Yrd Mat Sub Rec Scr Fac Low Low Dat Combat Hostiles Destroyed 58 | . . 14 1 . 30 10 . 3 Melee 1 | . . . . . . . . 1 Guns 42 | . . 3 . . 28 10 . 1 Cannons 8 | . . 7 . . . . . 1 AOE 7 | . . 4 1 . 2 . . . Classes Destroyed 17 | . . 4 1 . 9 3 . . Worker 6 | . . . . . 6 . . . Builder 5 | . . . . . 5 . . . Hauler 1 | . . . . . 1 . . . Recycler 4 | . . . . . 4 . . . Turret 2 | . . 2 . . . . . . Watcher 2 | . . . . . 2 . . . Swarmer 13 | . . 4 . . 6 3 . . Grunt 24 | . . . . . 18 6 . . Duelist 2 | . . . . . 1 1 . . Sentry 2 | . . . 1 . 1 . . . Hunter 2 | . . . . . 2 . . . Programmer 2 | . . . . . 2 . . . Enhanced Grunt 3 | . . . . . . . . 3 Artisan 3 | . . 3 . . . . . . Subdweller 10 | . . 10 . . . . . . Botcube 1 | . . . . . . 1 . . Decomposer 3 | . . . . . . 3 . . Packrat 5 | . . . . . . 5 . . Samaritan 1 | . . . . . . 1 . . Mutant 1 | . . . . . . 1 . . Best Kill Streak 10 | . . 6 1 . 10 4 . 1 Combat Bots Only 6 | . . 4 1 . 6 4 . 1 Max Kills in Single Turn 2 | . . 2 1 . 2 2 . 1 Gunslinging . | . . . . . . . . . Exploded 2 | . . 2 1 . 2 . . . Melee 1 | . . . . . . . . 1 Uniques/NPCs Destroyed 1 | . . . . . . . . 1 Data Miner (-6/Data Miner) Combat | -11 -10 -10 -9 -9 -6 -6 -6 -6 -------- Run | Yrd Mat Sub Rec Scr Fac Low Low Dat Hostile Shots Fired 388 | . . 69 4 . 204 41 . 70 Missed 128 | . . 22 1 . 74 14 . 17 Hits 260 | . . 47 3 . 130 27 . 53 Projectile 260 | . . 47 3 . 130 27 . 53 AOE 1 | . . . . . 1 . . . Critical Strikes 9 | . . . . . 7 2 . . Damage Taken 6015 | . . 889 45 . 2146 482 . 2453 Core 1099 | . . 207 16 . 303 53 . 520 Absorbed by Shields . | . . . . . . . . . Regen/Repaired (Parts) 25 | . . . . . 5 10 10 . Core Remaining (%) 55 | 100 . . . 10 . . . . Volleys Fired 195 | . . 55 2 . 77 40 . 21 Largest 5 | . . 2 2 . 5 4 . 4 Hottest 212 | . . 120 70 . 212 116 . 203 Shots Fired 574 | . . 98 4 . 318 125 . 29 Gun 494 | . . 41 . . 314 125 . 14 Cannon 64 | . . 49 . . 3 . . 12 Launcher 15 | . . 8 4 . . . . 3 Special 1 | . . . . . 1 . . . Kinetic 497 | . . 57 2 . 307 125 . 6 Thermal 45 | . . 19 . . 9 . . 17 Explosive 9 | . . 4 2 . . . . 3 Electromagnetic 22 | . . 18 . . 1 . . 3 Robot Hit Streak 13 | . . 7 2 . 6 8 . 13 Robot Miss Streak 7 | . . 3 1 . 7 5 . 2 Penetration Max 2 | . . . . . 2 1 . . Secondary Targets 11 | . . . . . 9 2 . . Max Gunslinging Chain 1 | . . . . . 1 1 . . Shots Hit Robots 312 | . . 58 3 . 154 69 . 28 Core Hits 169 | . . 32 2 . 92 25 . 18 Critical Kills 3 | . . . . . 2 . . 1 Critical Parts Destroyed 7 | . . . . . 5 2 . . Critical Strikes 10 | . . . . . 7 2 . 1 Destroy 8 | . . . . . 7 . . 1 Smash 2 | . . . . . . 2 . . Melee Attacks 40 | . . . . . 3 18 1 18 Impact 13 | . . . . . 3 10 . . Slashing 27 | . . . . . . 8 1 18 Piercing . | . . . . . . . . . Sneak Attacks 15 | . . . . . . 14 . 1 Combat Hostiles . | . . . . . . . . . Follow-up Attacks 1 | . . . . . . 1 . . Damage Inflicted 9929 | . . 1455 147 . 5192 2265 . 870 Guns 6172 | . . 317 . . 4551 1176 . 128 Cannons 934 | . . 645 . . 25 . . 264 Explosions 1337 | . . 493 147 . 600 . . 97 Melee 1395 | . . . . . . 1089 . 306 Ramming 91 | . . . . . 16 . . 75 Kinetic 6687 | . . 829 123 . 4472 1176 . 87 Thermal 1379 | . . 395 . . 704 . . 280 Explosive 202 | . . 81 24 . . . . 97 Electromagnetic 175 | . . 150 . . . . . 25 Impact 587 | . . . . . . 587 . . Slashing 808 | . . . . . . 502 . 306 Piercing . | . . . . . . . . . Highest Corruption 9 | . . . . . 9 9 9 9 Average Corruption 6 | . . . . . 2 9 9 9 Corruption Purged . | . . . . . . . . . Corruption Blocked . | . . . . . . . . . Effects 72 | . . . . . 16 41 6 9 Message Errors 18 | . . . . . 4 8 3 3 Matter Fused 18 | . . . . . 4 12 1 1 Heat Flow Errors 11 | . . . . . 2 6 1 2 Energy Discharges 12 | . . . . . 4 6 1 1 Parts Rejected 2 | . . . . . 1 1 . . Parts Fused 1 | . . . . . . 1 . . Data Loss (minor) 4 | . . . . . 1 3 . . Data Loss (major) 3 | . . . . . . 2 . 1 Misfires 2 | . . . . . . 2 . . Weapon Failures 1 | . . . . . . . . 1 Overload Shots . | . . . . . . . . . Overflow Damage 818 | . . 2 . . 69 747 . . Projectiles . | . . . . . . . . . Explosions 71 | . . 2 . . 69 . . . Melee 747 | . . . . . . 747 . . Knockbacks 3 | . . 1 . . 1 1 . . Impact 2 | . . . . . 1 1 . . Kinetic 1 | . . 1 . . . . . . Secondary . | . . . . . . . . . Self-Inflicted Damage 18 | . . 11 . . 7 . . . Shots 1 | . . 1 . . . . . . Rammed 4 | . . . . . 4 . . . Targets Rammed 21 | . . . . . 4 . . 17 Kicked 17 | . . . . . . . . 17 Crushed . | . . . . . . . . . Highest Temperature 381 | . . 45 7 . 381 241 114 151 Average Temperature 80 | . . 21 4 . 95 88 65 49 Received Heat Transfer 1386 | . . 189 18 . 954 225 . . Effects 3 | . . . . . 3 . . . Interference 3 | . . . . . 3 . . . Siege Activations . | . . . . . . . . . Martial Activations . | . . . . . . . . . Shielding Activations . | . . . . . . . . . Robots Disrupted . | . . . . . . . . . Combat Hostiles . | . . . . . . . . . Robots Corrupted 2 | . . . . . . 2 . . Combat Hostiles . | . . . . . . . . . Parts Fried 4 | . . . . . . 4 . . Impact Corruptions 14 | . . . . . . 14 . . Robots Melted . | . . . . . . . . . Combat Hostiles . | . . . . . . . . . Parts Melted . | . . . . . . . . . Heat Transferred 1243 | . . 531 . . 662 . . 50 Parts Sabotaged . | . . . . . . . . . Parts Stolen . | . . . . . . . . . Parts Stripped . | . . . . . . . . . Power Chain Reactions 1 | . . 1 . . . . . . Alert | -11 -10 -10 -9 -9 -6 -6 -6 -6 ------- Run | Yrd Mat Sub Rec Scr Fac Low Low Dat Maximum Alert Level 4 | . . . . . 4 . . . Low Security (%) 41 | 100 100 . 100 . 19 . . . Level 1 16 | . . . . . 22 . . . Level 2 24 | . . . . . 34 . . . Level 3 13 | . . . . . 18 . . . Level 4 3 | . . . . . 5 . . . Level 5 . | . . . . . . . . . High Security . | . . . . . . . . . Max Security . | . . . . . . . . . Peak Influence 1219 | . . . 85 . 1219 . . . Initial 77 | . . . 77 . . . . . Average 369 | . . . 40 . 501 . . . Influence Increases 2306 | . . 165 48 . 1751 322 . 20 Destroy 0b10 Robot/C 1260 | . . 120 20 . 820 280 . 20 Destroy 0b10 Robot/NC 105 | . . . . . 105 . . . Destroy Leader 188 | . . . . . 168 20 . . Allied During Kill 136 | . . . . . 114 22 . . Successful Hack 7 | . . . . . 7 . . . Disable Machine 210 | . . . . . 210 . . . Anti-Garrison Action 150 | . . . . . 150 . . . Destroy Structure 130 | . . . 28 . 102 . . . Lose Combat Pursuer 120 | . . 45 . . 75 . . . Influence Decreases 2306 | . . 3 210 . 548 922 216 407 Entered New Map 1034 | . . . 85 . . 446 116 387 Time Decay 1182 | . . 3 115 . 498 446 100 20 Lost Part 90 | . . . 10 . 50 30 . . Squads Dispatched 14 | . . . . . 14 . . . Investigation 4 | . . . . . 4 . . . Extermination 2 | . . . . . 2 . . . Reinforcement 5 | . . . . . 5 . . . Assault 2 | . . . . . 2 . . . Garrison 1 | . . . . . 1 . . . Intercept . | . . . . . . . . . Searches Triggered . | . . . . . . . . . Construction Impeded 4 | . . . . . 4 . . . Haulers Reinforced 1 | . . . . . 1 . . . Active Scanning Responses . | . . . . . . . . . Cargo Convoy Interrupts . | . . . . . . . . . Stealth | -11 -10 -10 -9 -9 -6 -6 -6 -6 --------- Run | Yrd Mat Sub Rec Scr Fac Low Low Dat Distress Signals 4 | . . . . . 4 . . . Communications Jammed . | . . . . . . . . . Distress Signals . | . . . . . . . . . Times Spotted 82 | . . 15 1 . 51 11 . 4 Peak Tracking Total 7 | . . 4 1 . 7 4 . 2 Tactical Retreats 6 | . . 1 . . 5 . . . Traps | -11 -10 -10 -9 -9 -6 -6 -6 -6 ------- Run | Yrd Mat Sub Rec Scr Fac Low Low Dat Traps Triggered 2 | . . . . . 2 . . . Indirectly . | . . . . . . . . . Trap Hack Attempts . | . . . . . . . . . Triggered . | . . . . . . . . . Disarmed . | . . . . . . . . . Reprogrammed . | . . . . . . . . . Reused . | . . . . . . . . . Traps Extracted . | . . . . . . . . . Installed . | . . . . . . . . . Triggered . | . . . . . . . . . Machines | -11 -10 -10 -9 -9 -6 -6 -6 -6 ---------- Run | Yrd Mat Sub Rec Scr Fac Low Low Dat Machines Disabled 21 | . . 4 . . 15 1 . 1 Max in Single Turn 8 | . . 2 . . 8 1 . 1 Garrison Access 2 | . . . . . 2 . . . Machines Repaired . | . . . . . . . . . Machines Dismantled . | . . . . . . . . . Machines Sabotaged . | . . . . . . . . . Overloaded Fab Kills . | . . . . . . . . . Hacking | -11 -10 -10 -9 -9 -6 -6 -6 -6 --------- Run | Yrd Mat Sub Rec Scr Fac Low Low Dat Machines Accessed 7 | . . . . 1 5 1 . . Terminals 2 | . . . . . 1 1 . . Fabricators . | . . . . . . . . . Repair Stations . | . . . . . . . . . Recycling Units 3 | . . . . . 3 . . . Scanalyzers . | . . . . . . . . . Garrison Access 1 | . . . . . 1 . . . Total Hacks 15 | . . . . 1 10 4 . . Successful 11 | . . . . 1 6 4 . . Failed 4 | . . . . . 4 . . . Catastrophic . | . . . . . . . . . Database Lockouts . | . . . . . . . . . Manual 5 | . . . . . 5 . . . Terminals 7 | . . . . . 3 4 . . Fabricators . | . . . . . . . . . Repair Stations . | . . . . . . . . . Recycling Units 3 | . . . . . 3 . . . Scanalyzers . | . . . . . . . . . Garrison Access 4 | . . . . . 4 . . . Terminal Hacks 7 | . . . . 1 2 4 . . Record 4 | . . . . . . 4 . . Branch Access Points 1 | . . . . . 1 . . . Recycling Unit Index 1 | . . . . . 1 . . . Proto ID Catalog 1 | . . . . 1 . . . . Fabricator Hacks . | . . . . . . . . . Repair Station Hacks . | . . . . . . . . . Recycling Unit Hacks . | . . . . . . . . . Scanalyzer . | . . . . . . . . . Garrison Access Hacks 1 | . . . . . 1 . . . Seal Access 1 | . . . . . 1 . . . Unauthorized Hacks 3 | . . . . . 3 . . . Terminals . | . . . . . . . . . Fabricators . | . . . . . . . . . Repair Stations . | . . . . . . . . . Recycling Units 3 | . . . . . 3 . . . Fedlink 3 | . . . . . 3 . . . Scanalyzers . | . . . . . . . . . Garrison Access . | . . . . . . . . . Data Cores Recovered . | . . . . . . . . . Used . | . . . . . . . . . Hacking Detections 3 | . . . . . 2 1 . . Full Trace Events 2 | . . . . . 1 1 . . Feedback Events . | . . . . . . . . . Feedback Blocked . | . . . . . . . . . Robot Schematics Acquired . | . . . . . . . . . Robots Built . | . . . . . . . . . Authchips . | . . . . . . . . . Time . | . . . . . . . . . Total Robot Build Rating . | . . . . . . . . . Part Schematics Acquired . | . . . . . . . . . Parts Built . | . . . . . . . . . Authchips . | . . . . . . . . . Time . | . . . . . . . . . Total Part Build Rating . | . . . . . . . . . Part Studies Acquired . | . . . . . . . . . Parts Repaired . | . . . . . . . . . Time . | . . . . . . . . . Parts Recycled . | . . . . . . . . . Recycled Matter . | . . . . . . . . . Retrieved Matter . | . . . . . . . . . Retrieved Components . | . . . . . . . . . Parts Scanalyzed . | . . . . . . . . . Part Schematics Acquired . | . . . . . . . . . Parts Damaged . | . . . . . . . . . Bothacking | -11 -10 -10 -9 -9 -6 -6 -6 -6 ------------ Run | Yrd Mat Sub Rec Scr Fac Low Low Dat Used RIF Installer . | . . . . . . . . . Robots Hacked . | . . . . . . . . . Non-combat . | . . . . . . . . . Combat . | . . . . . . . . . Robot Hacks Applied . | . . . . . . . . . Relay Couplers Released 2 | . . . . . 2 . . . Machine Destruction 2 | . . . . . 2 . . . Fabnet Peak Effective % . | . . . . . . . . . Robots Rewired . | . . . . . . . . . Allies Hacked . | . . . . . . . . . Hacks Repelled . | . . . . . . . . . Allies | -11 -10 -10 -9 -9 -6 -6 -6 -6 -------- Run | Yrd Mat Sub Rec Scr Fac Low Low Dat Total Allies 1 | . . . . 1 . . . . Largest Group 1 | . . . . 1 1 1 . . Highest-Rated Group 93 | . . . . 93 93 93 . . Highest-Rated Ally 93 | . . . . 93 93 93 . . Total Orders . | . . . . . . . . . Ally Attacks 80 | . . . . . 50 30 . . Total Damage 1889 | . . . . . 1192 697 . . Kills 18 | . . . . . 14 4 . . Allies Corrupted . | . . . . . . . . . Allies Melted . | . . . . . . . . . Intel | -11 -10 -10 -9 -9 -6 -6 -6 -6 ------- Run | Yrd Mat Sub Rec Scr Fac Low Low Dat Active Infowar (turns) 2631 | . . . . . 1231 1103 215 82 Optics 496 | . . . . . 496 . . . Sensors 2136 | . . . . . 736 1103 215 82 Robot Analysis Total . | . . . . . . . . . Derelict Logs Recovered 7 | . . 1 . 2 . 2 2 . Drone Launches . | . . . . . . . . . Drone Recoveries . | . . . . . . . . . Exploration | -11 -10 -10 -9 -9 -6 -6 -6 -6 ------------- Run | Yrd Mat Sub Rec Scr Fac Low Low Dat Turns Passed 11243 | 80 180 1896 283 5826 1433 1103 215 227 Spaces Moved 6744 | 47 106 1163 223 2821 1093 976 232 83 Core 6 | 6 . . . . . . . . Treads 902 | 41 106 755 . . . . . . Legs 14 | . . . . . . . . 14 Wheels 5822 | . . 408 223 2821 1093 976 232 69 Hover . | . . . . . . . . . Flight . | . . . . . . . . . Fastest Speed 50 | 50 160 125 110 80 80 90 90 80 Average Speed 150 | 145 160 147 123 203 93 90 90 98 Slowest Speed 235 | 160 160 160 125 220 235 90 90 190 Overloaded Moves . | . . . . . . . . . Propulsion Burnouts . | . . . . . . . . . Robots Hopped . | . . . . . . . . . Potential Cave-ins 2 | . . . . . 2 . . . Cave-ins Triggered . | . . . . . . . . . Exploration Rate (%) 49 | 4 15 81 47 81 32 73 44 65 Regions Visited 8 Branch Regions 6 Pre-discovered Areas 6 | . . 1 . . 1 3 1 . Known Exits Taken 3 | . . . . . 1 1 1 . Unknown Exits Taken 5 | 1 1 1 1 1 . . . . Scrap Searched 12 | . . 4 . 3 . 3 2 . Spaces Dug 14 | . . . . . 7 6 1 . Terrain Destroyed 265 | . . 68 54 . 120 16 1 6 Melee 8 | . . . . . 3 4 1 . Projectile 67 | . . 4 . . 51 12 . . AOE 188 | . . 64 54 . 64 . . 6 Terrain Rammed . | . . . . . . . . . Walls Destroyed . | . . . . . . . . . Machines Disabled . | . . . . . . . . . Actions | -11 -10 -10 -9 -9 -6 -6 -6 -6 --------- Run | Yrd Mat Sub Rec Scr Fac Low Low Dat Total 7412 | 56 117 1239 228 2918 1345 1094 238 177 Wait 192 | 1 . 1 . 34 84 52 . 20 Move 6736 | 46 105 1162 222 2820 1092 975 231 83 Hop . | . . . . . . . . . Pick Up 77 | 3 9 7 . 39 15 2 1 1 Fast Attach 39 | 6 1 1 . 4 17 4 1 5 Attach 22 | . 1 2 1 . 12 . . 6 Detach 4 | . . . 2 . 1 . . 1 Swap 21 | . . 9 . . 10 . 1 1 Drop 66 | . 1 2 1 21 30 4 3 4 Fire 195 | . . 55 2 . 77 40 . 21 Melee 39 | . . . . . 3 17 1 18 Ram 4 | . . . . . 4 . . . Kick 17 | . . . . . . . . 17 Crush . | . . . . . . . . . Escape Stasis . | . . . . . . . . . Rewire . | . . . . . . . . . Trap . | . . . . . . . . . Miscellaneous . | . . . . . . . . . Route ------- -11/Scrapyard -10/Materials -10/Subcaves (discovered 3 exits: [*Mat x2] / [*Rec]) -9/Recycling (discovered 2 exits: [*Fac] / *Scr) -9/Scraptown -6/Factory (discovered 2 exits: *Low x2) -6/Lower Caves -6/Lower Caves -6/Data Miner (discovered 1 exit: [*Pro]) History --------- Turn | Location | Event 15 | -11/Scrapyard | Discovered new exit (range 16) 81 | -11/Scrapyard | Entered Materials 250 | -10/Materials | Discovered new exit (range 7) 261 | -10/Materials | Entered Subcaves 317 | -10/Subcaves | Build established: Mutant 900 | -10/Subcaves | Shifting Twisted Machinery released Battle Cannon 1193 | -10/Subcaves | Discovered new exit (range 15) 1370 | -10/Subcaves | Learned location of Zion (-7) 1370 | -10/Subcaves | Met a Zionite searching for "candidates" 1510 | -10/Subcaves | Core integrity fell below 50% 1635 | -10/Subcaves | A swath of the cavern ceiling suddenly collapsed 1679 | -10/Subcaves | Ambushed by angry Subdweller bent on revenge 1977 | -10/Subcaves | Discovered new exit (range 15) 2097 | -10/Subcaves | Learned Materials emergency access door positions 2134 | -10/Subcaves | Discovered new exit (range 13) 2135 | -10/Subcaves | Core integrity fell below 20% 2157 | -10/Subcaves | Entered Recycling 2357 | -9/Recycling | Discovered new exit (range 8) 2408 | -9/Recycling | Scanned before Scraplab entrance 2429 | -9/Recycling | Entered Scraplab 2438 | -9/Recycling | Discovered new exit (range 3) 2440 | -9/Recycling | Entered Scraptown 2567 | -9/Scraptown | Visited UFD Registry 2567 | -9/Scraptown | Registered with UFD as "Nanomind" 2589 | -9/Scraptown | Visited Science Guys 2646 | -9/Scraptown | Visited A0-MCA Data Center 2659 | -9/Scraptown | Visited Chapter 10 2679 | -9/Scraptown | Visited Infowarlord's Domain 2693 | -9/Scraptown | Visited Scrap Suit Storage 2703 | -9/Scraptown | Visited Modified Component R&D 2742 | -9/Scraptown | Visited Derelict Rescue Squad 2775 | -9/Scraptown | Visited Botcube Research 2792 | -9/Scraptown | Visited Scrapoid Research Area 3110 | -9/Scraptown | Found Scrap Suit 3159 | -9/Scraptown | Found Spectral Analyzer 3191 | -9/Scraptown | Build established: Hauler-Mutant 3558 | -9/Scraptown | Visited Junk Repository 3593 | -9/Scraptown | Visited Junk Repository 4331 | -9/Scraptown | Found Scrap Suit 4509 | -9/Scraptown | Found DRS Beacon 4759 | -9/Scraptown | Given a C- rating by A0-MCA 4762 | -9/Scraptown | Found A0-MCA's Component Scanner 5240 | -9/Scraptown | Heard Great Nut preacher, LISTEN AND RECITE! 5308 | -9/Scraptown | Scanned Subdweller tech in exchange for log data 5315 | -9/Scraptown | Learned Research trap positions 6777 | -9/Scraptown | Found Lrg. Botcube 6896 | -9/Scraptown | Lrg. Botcube activated 6932 | -9/Scraptown | Lrg. Botcube completed mutation into legged form, armed with 4 guns. 7739 | -9/Scraptown | Visited SPCMW 7937 | -9/Scraptown | Found Scrap Suit 8006 | -9/Scraptown | Discovered new exit (range 5) 8145 | -9/Scraptown | Met Optimus 8145 | -9/Scraptown | Accepted into 0bPrime 8266 | -9/Scraptown | Entered Factory 8266 | -6/Factory | Accompanied by 1 ally 8266 | -6/Factory | Evolved 8 slots: Utility x5, Weapon x3 8267 | -6/Factory | Identified exit to Lower Caves 8488 | -6/Factory | Found Prototype Processor 8488 | -6/Factory | Identified Exp. Targeting Computer 8525 | -6/Factory | Garrison activated, responded to threat 8534 | -6/Factory | Attached CPS modules to *stacky. 8629 | -6/Factory | Build established: Scrapper 9166 | -6/Factory | Loaded intel: 8 recycling unit locations 9246 | -6/Factory | Learned location of Protoforge (-3) 9507 | -6/Factory | Lost 3 parts (3w) 9699 | -6/Factory | Entered Lower Caves 9699 | -6/Lower Caves | Accompanied by 1 ally 9939 | -6/Lower Caves | Build established: Skirmisher 10048 | -6/Lower Caves | Learned location of Extension (-4) 10048 | -6/Lower Caves | Identified exit to Lower Caves 10048 | -6/Lower Caves | Learned location of 1 exit from Lower Caves 10124 | -6/Lower Caves | Murdered *stacky 10124 | -6/Lower Caves | Destroyed *stacky 10130 | -6/Lower Caves | Found Lrg. Botcube 10341 | -6/Lower Caves | Build established: Scavenger-Skirmisher 10481 | -6/Lower Caves | Learned Factory trap positions 10682 | -6/Lower Caves | Encountered a Warlord checkpoint 10802 | -6/Lower Caves | Entered another Lower Caves area 10803 | -6/Lower Caves | Identified exit to Data Miner 10910 | -6/Lower Caves | Learned Factory trap positions 10944 | -6/Lower Caves | Encountered a Warlord checkpoint 11017 | -6/Lower Caves | Entered Data Miner 11018 | -6/Data Miner | Discovered new exit (range 6) 11036 | -6/Data Miner | Met Data Miner 11048 | -6/Data Miner | Destroyed Data Miner 11051 | -6/Data Miner | Data Conduit disabled 11089 | -6/Data Miner | Core integrity fell below 50% 11140 | -6/Data Miner | Lost 5 parts (2p3w) 11218 | -6/Data Miner | Lost 4 parts (2u2w) 11231 | -6/Data Miner | Core integrity fell below 20% 11244 | -6/Data Miner | Destroyed by Enhanced Grunt with Neutron Cannon Last Messages --------------- 11193_ Kicked Enhanced Grunt. 11194_ Kicked Enhanced Grunt out of the way. 11195_ Kicked Enhanced Grunt. 11196_ Kicked Enhanced Grunt out of the way. 11208_ Acquired Lgt. Angular Momentum Engine. 11212_ System corrupted: Heat flow error (+154). 11214_ System corrupted: Mni. Grenade Launcher failed to launch. 11218_ Scrap Suit destroyed. 11220_ Mni. Grenade Launcher destroyed. 11222_ Lgt. Angular Momentum Engine destroyed. 11222_ Med. Reactive Plating destroyed. 11228_ >WQFTDHV9SSXRWJ2OWAJBD3UX3,HQX1YU5GGMO4 11230_ Enhanced Grunt destroyed. 11231_ Enh. Flexi-carbon Leg destroyed. 11235_ Dropped Adv. Energy Well. 11235_ Adv. Heat Sink destroyed. 11236_ Extracted 81 energy. 11237_ Extracted 25 energy. 11240_ Core Analyzer destroyed. 11241_ Extracted 11 energy. Map ----- +----------------------------------------------------+ | | | | | | | | | | | | | | | | | | | | | | | ?????????????????????????????????? | | ?????????????????????????????????? | | ?????????????????????????????????? | | ?????????????????????????????????? | | ?????????????????????????????????? | | ????#################????????????? | | ???##"""""""" """""######???????? | | ??##""""""""" """"""""######### | | ??#""""""""" | | ??#"""""" = | | ??#""""" g | | ??#""""!"%!! | | ??#"""="" | | ??#""%""" % """""""""" | | ??#"%!%""@ """######## | | ??##!%!"""" " "###??????? | | ??#%#%=%""" #????????? | | ?# ##;!;####"## "# ##????????? | | ? #?#####??#"### "#????????????? | | #?????????#"#?# "#????????????? | | ???????????#"?? "#????????????? | | ??????????????# "#????????????? | | ?????????????? "#????????????? | | ??????????????## "?????????????? | | ???????????????# "?????????????? | | ???????????????? "?????????????? | | ???????????????? ??????????????? | | ?????????????????????????????????? | | ?????????????????????????????????? | | ?????????????????????????????????? | | ?????????????????????????????????? | | ?????????????????????????????????? | | ?????????????????????????????????? | | ?????????????????????????????????? | | ?????????????????????????????????? | | ?????????????????????????????????? | | ?????????????????????????????????? | | ?????????????????????????????????? | | ?????????????????????????????????? | +----------------------------------------------------+ Best States ------------- Heat Dissipation 65 Energy Generation 18 Energy Capacity 600 Matter Stores 300 Matter Capacity 300 Sight Range 18 Robot Scan Range 16 Terrain Scan Density 10 Armor Coverage 225 Resistance: KI 30 Evasion (%) 45 Targeting Accuracy 6 Core Analysis 6 Recoil Reduction 2 Item Schematics ----------------- None Robot Schematics ------------------ None Fabricated ------------ Nothing Repaired ---------- Nothing Studied --------- None Alien Tech Used ----------------- None Achievements -------------- Art Critic Challenges ------------ None Game ------ Seed BombardmentMomentumBay Manual? 0 Play Time 01:01:17 Cumulative 396.1 hours Start 2025.10.27 @ 15:49:22 End 2025.10.28 @ 21:54:16 Sessions 3 Manual Loads 0 Difficulty Rogue Special Mode None Game No. 358 Rogue 322 Adventurer 36 Explorer 0 Win Type - Total 15 Types 7/0/8/0/0/0/0/0/0/0 Lore% 71 Gallery% 84 Achievement% 54 Wizard Run 0 Options --------- Layout 0 ASCII 0 Keyboard 0 Movement Mouse Keybinds 0 Fullscreen 1 Font 18/SmallcapsGlow Map View 76x50 Zoom Use 0% Tactical HUD 1 Map Filters NONE Filters NONE Steam 1 RUN: bd7b11c7-0a9b-4870-a8fb-6bb9d1256405